[Event "GER-chT Youth Countries 2020"]
[Site "Berlin"]
[Date "2020.10.04"]
[Round "7"]
[White "Lesny, Florian"]
[Black "Popvasilev, Kaloyan"]
[Result "1/2-1/2"]
[ECO "B67"]
[WhiteElo "2178"]
[BlackElo "2145"]
[Annotator "ChessBase"]
[PlyCount "172"]
[EventDate "2020.09.30"]
[EventType "team-tourn"]
[EventRounds "7"]
[EventCountry "GER"]
[SourceTitle "playchess.com"]
[Source "ChessBase"]
[SourceQuality "1"]
[TimeControl "30/5400+30:0"]

1. e4 {[%emt 0:00:00]} c5 {[%emt 0:00:00]} 2. Nf3 {[%emt 0:00:00]} d6 {[%emt 0:00:00]} 3. d4 {[%emt 0:00:00]} Nf6 {[%emt 0:00:00]} 4. Nc3 {[%emt 0:00:00]} cxd4 {[%emt 0:00:00]} 5. Nxd4 {[%emt 0:00:09]} Nc6 {[%emt 0:00:02]} 6. Bg5 {[%emt 0:00:12]} e6 {[%emt 0:00:18]} 7. Qd2 {[%emt 0:00:34]} a6 {[%emt 0:00:10]} 8. O-O-O {[%emt 0:00:23]} Bd7 {[%emt 0:00:11]} 9. f4 {[%emt 0:00:40]} b5 {[%emt 0:00:54]} 10. Bxf6 {[%emt 0:01:03]} gxf6 {[%emt 0:00:17]} 11. Kb1 {[%emt 0:01:12]} Qb6 {[%emt 0:01:02]} 12. Nxc6 {[%emt 0:00:51]} Bxc6 {[%emt 0:00:15]} 13. f5 {[%emt 0:00:55]} h5 {[%emt 0:01:14]} 14. fxe6 {[%emt 0:04:43]} fxe6 {[%emt 0:01:13]} 15. Bd3 {[%emt 0:01:31]} b4 {[%emt 0:01:07]} 16. Ne2 {[%emt 0:02:48]} Bh6 {[%emt 0:01:17]} 17. Qe1 {[%emt 0:00:49]} Qc5 {[%emt 0:01:08]} 18. Rf1 {[%emt 0:03:34]} Ke7 {[%emt 0:02:16]} 19. g3 {[%emt 0:06:20]} a5 {[%emt 0:03:39]} 20. Nf4 {[%emt 0:05:12]} Bxf4 {[%emt 0:01:39]} 21. gxf4 {[%emt 0:00:49]} Rag8 {[%emt 0:17:20]} 22. e5 {[%emt 0:17:40]} h4 {[%emt 0:35:46]} 23. exd6+ {[%emt 0:03:13]} Kd7 {[%emt 0:02:01]} 24. f5 {[%emt 0:01:45]} e5 {[%emt 0:00:47]} 25. Be4 {[%emt 0:01:12]} Bb5 {[%emt 0:04:08]} 26. Rf2 {[%emt 0:01:33]} Rg4 {[%emt 0:00:52]} 27. Bd5 {[%emt 0:02:40]} Kxd6 {[%emt 0:10:55]} 28. Bf3+ {[%emt 0:04:15]} Rd4 {[%emt 0:00:04]} 29. Rxd4+ {[%emt 0:00:44]} exd4 {[%emt 0:00:17]} 30. Qe6+ {[%emt 0:01:12]} Kc7 {[%emt 0:00:05]} 31. Rg2 {[%emt 1:35:00]} Bc6 {[%emt 1:35:03]} 32. Rg7+ {[%emt 0:05:38]} Kb6 {[%emt 0:00:05]} 33. Qxf6 {[%emt 0:08:33]} Rf8 {[%emt 0:03:10]} 34. Qxc6+ {[%emt 0:01:11]} Qxc6 {[%emt 0:00:03]} 35. Bxc6 {[%emt 0:00:16]} Kxc6 {[%emt 0:00:04]} 36. Rg6+ {[%emt 0:04:41]} Kd5 {[%emt 0:01:35]} 37. Ra6 {[%emt 0:02:23]} Ke4 {[%emt 0:01:58]} 38. Rxa5 {[%emt 0:03:37]} Rg8 {[%emt 0:01:18]} 39. a3 {[%emt 0:01:57]} bxa3 {[%emt 0:00:12]} 40. Rxa3 {[%emt 0:01:41]} Kxf5 {[%emt 0:01:49]} 41. Rh3 {[%emt 0:05:36]} Rg4 {[%emt 0:03:02]} 42. b3 {[%emt 0:03:19]} Ke5 {[%emt 0:00:00]} 43. Kb2 {[%emt 0:00:00]} Kd5 {[%emt 0:00:00]} 44. Kc1 {[%emt 0:00:00]} Kc5 {[%emt 0:00:00]} 45. Kd2 {[%emt 0:00:00]} Rf4 {[%emt 0:00:00]} 46. Ke2 {[%emt 0:00:00]} Kb4 {[%emt 0:00:00]} 47. Rd3 {[%emt 0:00:00]} Ka3 {[%emt 0:00:00]} 48. Rd2 {[%emt 0:00:00]} Kb4 {[%emt 0:00:00]} 49. Kd3 {[%emt 0:00:00]} Kc5 {[%emt 0:00:00]} 50. Rg2 {[%emt 0:00:00]} Rf3+ {[%emt 0:00:00]} 51. Ke4 {[%emt 0:00:00]} Re3+ {[%emt 0:00:00]} 52. Kf4 {[%emt 0:00:00]} Rc3 {[%emt 0:00:00]} 53. Rd2 {[%emt 0:00:00]} Kd5 {[%emt 0:00:00]} 54. Re2 {[%emt 0:00:00]} Kc5 {[%emt 0:02:04]} 55. Ke4 {[%emt 0:00:00]} h3 {[%emt 0:02:41]} 56. b4+ {[%emt 0:00:00]} Kxb4 {[%emt 0:00:32]} 57. Kxd4 {[%emt 0:00:00]} Rc4+ {[%emt 0:01:00]} 58. Ke3 {[%emt 0:00:00]} Rc3+ {[%emt 0:01:18]} 59. Kf4 {[%emt 0:00:00]} Kc4 {[%emt 0:00:34]} 60. Rd2 {[%emt 0:00:15]} Kc5 {[%emt 0:00:51]} 61. Kg4 {[%emt 1:30:30]} Kc6 {[%emt 1:31:06]} 62. Rd3 {[%emt 0:00:55]} Rxc2 {[%emt 0:00:30]} 63. Kxh3 {[%emt 0:00:07]} Rc5 {[%emt 0:01:00]} 64. Kg4 {[%emt 0:00:14]} Rc4+ {[%emt 0:00:02]} 65. Kg3 {[%emt 0:00:27]} Rc5 {[%emt 0:00:08]} 66. h4 {[%emt 0:01:37]} Rd5 {[%emt 0:00:20]} 67. Re3 {[%emt 0:00:05]} Kd7 {[%emt 0:00:05]} 68. Kg4 {[%emt 0:00:51]} Rd4+ {[%emt 0:01:21]} 69. Kg5 {[%emt 0:00:29]} Rd5+ {[%emt 0:00:03]} 70. Kg6 {[%emt 0:00:08]} Rd6+ {[%emt 0:00:05]} 71. Kf7 {[%emt 0:00:40]} Rd5 {[%emt 0:00:38]} 72. Rh3 {[%emt 0:00:39]} Rf5+ {[%emt 0:01:25]} 73. Kg6 {[%emt 0:00:17]} Rf1 {[%emt 0:01:51]} 74. Re3 {[%emt 0:01:51]} Rg1+ {[%emt 0:00:07]} 75. Kh6 {[%emt 0:00:05]} Rg4 {[%emt 0:00:18]} 76. h5 {[%emt 0:00:09]} Rg1 {[%emt 0:00:24]} 77. Kh7 {[%emt 0:00:05]} Rg5 {[%emt 0:00:24]} 78. h6 {[%emt 0:00:04]} Rg1 {[%emt 0:00:09]} 79. Re4 {[%emt 0:01:02]} Rg2 {[%emt 0:00:06]} 80. Re1 {[%emt 0:01:16]} Rg3 {[%emt 0:00:03]} 81. Kh8 {[%emt 0:00:37]} Rg6 {[%emt 0:01:23]} 82. Kh7 {[%emt 0:00:55]} Rg2 {[%emt 0:00:04]} 83. Ra1 {[%emt 0:00:07]} Ke7 {[%emt 0:00:12]} 84. Ra7+ {[%emt 0:00:07]} Kf8 {[%emt 0:00:30]} 85. Rg7 {[%emt 0:00:12]} Rf2 {[%emt 0:00:56]} 86. Kh8 {[%emt 0:00:50]} Rf6 {[%emt 0:00:30]} 1/2-1/2

[Event "GER-chT Youth Countries 2020"]
[Site "Berlin"]
[Date "2020.10.04"]
[Round "7"]
[White "Deuer, Marius"]
[Black "Sreyas Payyappat"]
[Result "1-0"]
[ECO "E10"]
[WhiteElo "2161"]
[BlackElo "2144"]
[Annotator "ChessBase"]
[PlyCount "68"]
[EventDate "2020.09.30"]
[EventType "team-tourn"]
[EventRounds "7"]
[EventCountry "GER"]
[SourceTitle "playchess.com"]
[Source "ChessBase"]
[SourceQuality "1"]
[TimeControl "30/5400+30:0"]

1. d4 Nf6 {[%emt 0:00:00]} 2. c4 {[%emt 0:00:00]} e6 {[%emt 0:00:03]} 3. Nf3 {[%emt 0:00:00]} d5 {[%emt 0:00:27]} 4. g3 {[%emt 0:00:00]} c5 5. cxd5 {[%emt 0:00:00]} exd5 {[%emt 0:01:49]} 6. Bg2 {[%emt 0:04:27]} b6 {[%emt 0:07:47]} 7. Nc3 {[%emt 0:14:44]} Bb7 {[%emt 0:24:56]} 8. Ne5 {[%emt 0:09:42]} Bd6 {[%emt 0:11:50]} 9. Bg5 {[%emt 0:15:14]} cxd4 {[%emt 0:09:21]} 10. Qxd4 {[%emt 0:25:10]} O-O {[%emt 0:09:06]} 11. O-O {[%emt 0:00:11]} Bxe5 {[%emt 0:00:28]} 12. Qxe5 {[%emt 0:04:00]} Nbd7 {[%emt 0:02:10]} 13. Qd4 {[%emt 0:00:47]} h6 {[%emt 0:02:10]} 14. Bf4 {[%emt 0:01:28]} Nc5 {[%emt 0:06:10]} 15. Be5 {[%emt 0:01:33]} Ncd7 {[%emt 0:00:35]} 16. Bd6 {[%emt 0:01:11]} Re8 {[%emt 0:03:19]} 17. e3 {[%emt 0:00:45]} Re6 {[%emt 0:00:27]} 18. Ba3 {[%emt 0:00:45]} Ne5 {[%emt 0:01:25]} 19. Rfd1 {[%emt 0:01:56]} Qe8 {[%emt 0:01:44]} 20. b3 {[%emt 0:01:39]} Rd8 {[%emt 0:00:42]} 21. Ne2 {[%emt 0:01:32]} Nc6 {[%emt 0:10:05]} 22. Qb2 {[%emt 0:01:28]} g5 {[%emt 0:02:44]} 23. Nd4 {[%emt 0:04:04]} Ne4 {[%emt 0:00:02]} 24. Nxe6 {[%emt 0:06:15]} Qxe6 {[%emt 0:00:36]} 25. Qc2 {[%emt 0:03:26]} Rc8 {[%emt 0:01:11]} 26. Rac1 {[%emt 0:01:00]} Ne5 {[%emt 0:00:35]} 27. Qb2 {[%emt 0:00:14]} Rxc1 {[%emt 0:00:44]} 28. Qxc1 {[%emt 0:00:20]} Ng4 {[%emt 0:02:05]} 29. f3 Nef2 30. fxg4 {[%emt 0:01:35]} Nxd1 {[%emt 0:00:35]} 31. Qxd1 {[%emt 1:29:32]} Qxe3+ {[%emt 1:30:36]} 32. Kh1 {[%emt 0:02:05]} Qf2 {[%emt 0:01:03]} 33. h3 {[%emt 0:00:54]} Qxg3 {[%emt 0:00:00]} 34. Qd2 Kg7 1-0

[Event "GER-chT Youth Countries 2020"]
[Site "Berlin"]
[Date "2020.10.04"]
[Round "7"]
[White "Hinrichs, Paul"]
[Black "Schmider, Niklas"]
[Result "0-1"]
[ECO "A49"]
[WhiteElo "2152"]
[BlackElo "2291"]
[Annotator "ChessBase"]
[PlyCount "54"]
[EventDate "2020.09.30"]
[EventType "team-tourn"]
[EventRounds "7"]
[EventCountry "GER"]
[SourceTitle "playchess.com"]
[Source "ChessBase"]
[SourceQuality "1"]
[TimeControl "30/5400+30:0"]

1. d4 {[%emt 0:00:00]} Nf6 {[%emt 0:00:00]} 2. Nf3 {[%emt 0:00:00]} g6 {[%emt 0:01:27]} 3. g3 {[%emt 0:00:18]} d5 {[%emt 0:11:45]} 4. Bg2 {[%emt 0:00:13]} Bg7 {[%emt 0:00:08]} 5. c4 {[%emt 0:00:33]} e6 {[%emt 0:02:10]} 6. b3 {[%emt 0:02:36]} O-O {[%emt 0:00:15]} 7. Nbd2 {[%emt 0:02:19]} Nc6 {[%emt 0:01:41]} 8. Bb2 {[%emt 0:01:32]} b6 {[%emt 0:00:39]} 9. O-O {[%emt 0:01:29]} Bb7 {[%emt 0:01:21]} 10. Rc1 {[%emt 0:06:24]} a5 {[%emt 0:09:36]} 11. a3 {[%emt 0:08:01]} Ne7 {[%emt 0:10:20]} 12. Qc2 {[%emt 0:06:52]} Rc8 {[%emt 0:06:20]} 13. c5 {[%emt 0:01:53]} Ba6 {[%emt 0:01:55]} 14. Rfe1 {[%emt 0:01:45]} Nd7 {[%emt 0:05:43]} 15. b4 {[%emt 0:04:20]} axb4 {[%emt 0:01:39]} 16. axb4 {[%emt 0:01:06]} Bb5 {[%emt 0:00:20]} 17. Nb1 {[%emt 0:10:40]} Ra8 {[%emt 0:10:17]} 18. Nc3 {[%emt 0:02:52]} Bc4 {[%emt 0:00:13]} 19. Nd2 {[%emt 0:02:47]} b5 {[%emt 0:01:03]} 20. e4 {[%emt 0:01:30]} Nc6 {[%emt 0:03:26]} 21. Nxc4 {[%emt 0:02:11]} Nxd4 {[%emt 0:02:13]} 22. Qd1 {[%emt 0:01:50]} dxc4 {[%emt 0:04:36]} 23. e5 {[%emt 0:25:19]} Nxe5 {[%emt 0:00:54]} 24. Nxb5 {[%emt 0:00:07]} Nd3 {[%emt 0:03:10]} 25. Bxd4 {[%emt 0:02:26]} Bxd4 {[%emt 0:00:51]} 26. Nxd4 {[%emt 0:00:53]} Qxd4 {[%emt 0:00:08]} 27. Rc2 {[%emt 0:01:09]} Ra4 {[%emt 0:11:17]} 0-1

[Event "GER-chT Youth Countries 2020"]
[Site "Berlin"]
[Date "2020.10.04"]
[Round "7"]
[White "Tiarks, Jann-Christian"]
[Black "Nguyen, Huy Dat"]
[Result "1/2-1/2"]
[ECO "B31"]
[WhiteElo "2151"]
[BlackElo "2166"]
[Annotator "ChessBase"]
[PlyCount "58"]
[EventDate "2020.09.30"]
[EventType "team-tourn"]
[EventRounds "7"]
[EventCountry "GER"]
[SourceTitle "playchess.com"]
[Source "ChessBase"]
[SourceQuality "1"]
[TimeControl "30/5400+30:0"]

1. e4 {[%emt 0:00:00]} c5 {[%emt 0:00:00]} 2. Nf3 {[%emt 0:00:00]} Nc6 {[%emt 0:00:00]} 3. Bb5 {[%emt 0:00:00]} g6 {[%emt 0:00:00]} 4. Bxc6 {[%emt 0:00:09]} dxc6 {[%emt 0:00:02]} 5. h3 {[%emt 0:00:14]} Bg7 {[%emt 0:00:05]} 6. O-O {[%emt 0:00:09]} e5 {[%emt 0:00:10]} 7. d3 {[%emt 0:00:09]} Qe7 {[%emt 0:00:23]} 8. Be3 {[%emt 0:00:57]} Nf6 {[%emt 0:00:56]} 9. Nbd2 {[%emt 0:01:06]} O-O {[%emt 0:01:27]} 10. a3 {[%emt 0:00:45]} Rd8 {[%emt 0:01:16]} 11. Qb1 {[%emt 0:02:55]} Nh5 {[%emt 0:05:35]} 12. b4 {[%emt 0:00:20]} cxb4 {[%emt 0:00:09]} 13. axb4 {[%emt 0:01:01]} Nf4 {[%emt 0:03:58]} 14. Rxa7 {[%emt 0:08:22]} Rxa7 {[%emt 0:01:56]} 15. Bxa7 {[%emt 0:00:11]} Bh6 {[%emt 0:07:28]} 16. Be3 {[%emt 0:02:46]} Ne2+ {[%emt 0:07:22]} 17. Kh2 {[%emt 0:00:37]} Bf4+ {[%emt 0:00:10]} 18. Bxf4 {[%emt 0:03:10]} Nxf4 {[%emt 0:00:10]} 19. Qb2 {[%emt 0:01:44]} f6 {[%emt 0:01:20]} 20. Ng1 {[%emt 0:01:32]} Qf8 {[%emt 0:02:02]} 21. Re1 {[%emt 0:06:17]} Qh6 {[%emt 0:04:24]} 22. Re3 {[%emt 0:00:31]} g5 {[%emt 0:07:39]} 23. Nf1 {[%emt 0:02:19]} g4 {[%emt 0:03:41]} 24. Qa2+ {[%emt 0:03:47]} Kh8 {[%emt 0:00:19]} 25. Qf7 {[%emt 0:00:58]} Rg8 {[%emt 0:01:48]} 26. Rg3 {[%emt 0:00:28]} Nh5 {[%emt 0:00:48]} 27. Re3 {[%emt 0:02:22]} Qf4+ 28. Ng3 {[%emt 0:02:37]} Nxg3 {[%emt 0:37:16]} 29. fxg3 {[%emt 0:01:57]} Qxe3 {[%emt 0:00:10]} 1/2-1/2

[Event "GER-chT Youth Countries 2020"]
[Site "Berlin"]
[Date "2020.10.04"]
[Round "7"]
[White "Khachatryan, Taron"]
[Black "Haack, Kevin"]
[Result "1/2-1/2"]
[ECO "B22"]
[WhiteElo "2136"]
[BlackElo "2209"]
[Annotator "ChessBase"]
[PlyCount "70"]
[EventDate "2020.09.30"]
[EventType "team-tourn"]
[EventRounds "7"]
[EventCountry "GER"]
[SourceTitle "playchess.com"]
[Source "ChessBase"]
[SourceQuality "1"]
[TimeControl "30/5400+30:0"]

1. e4 {[%emt 0:00:00]} c5 {[%emt 0:00:00]} 2. c3 {[%emt 0:00:00]} Nf6 {[%emt 0:00:00]} 3. e5 {[%emt 0:00:18]} Nd5 {[%emt 0:00:00]} 4. d4 {[%emt 0:00:09]} cxd4 {[%emt 0:00:00]} 5. Nf3 {[%emt 0:00:09]} d6 {[%emt 0:01:41]} 6. cxd4 {[%emt 0:00:17]} Nc6 {[%emt 0:00:55]} 7. Bc4 {[%emt 0:00:36]} e6 {[%emt 0:00:45]} 8. O-O {[%emt 0:00:22]} Be7 {[%emt 0:01:35]} 9. Qe2 {[%emt 0:00:40]} dxe5 {[%emt 0:06:22]} 10. dxe5 {[%emt 0:03:00]} Qc7 {[%emt 0:00:53]} 11. Rd1 {[%emt 0:01:25]} Nb6 {[%emt 0:02:12]} 12. Bb3 {[%emt 0:00:28]} O-O {[%emt 0:02:13]} 13. Nc3 {[%emt 0:00:18]} a6 {[%emt 0:02:09]} 14. Bf4 {[%emt 0:03:43]} Nd7 {[%emt 0:09:25]} 15. Rac1 {[%emt 0:05:57]} Nc5 {[%emt 0:05:31]} 16. Bc2 {[%emt 0:02:30]} Rd8 {[%emt 0:01:59]} 17. Rxd8+ {[%emt 0:06:43]} Qxd8 {[%emt 0:01:39]} 18. Ne4 {[%emt 0:07:46]} Nxe4 {[%emt 0:15:07]} 19. Qxe4 {[%emt 0:00:24]} g6 {[%emt 0:00:21]} 20. a3 {[%emt 0:01:25]} Qc7 {[%emt 0:05:25]} 21. Ba4 {[%emt 0:06:12]} Bd7 {[%emt 0:01:22]} 22. Nd4 {[%emt 0:12:48]} Rc8 {[%emt 0:01:19]} 23. Nxc6 {[%emt 0:05:14]} Bxc6 {[%emt 0:01:32]} 24. Bxc6 {[%emt 0:00:22]} bxc6 {[%emt 0:00:09]} 25. b4 {[%emt 0:01:48]} Rd8 {[%emt 0:08:11]} 26. h3 {[%emt 0:02:24]} Rd5 {[%emt 0:02:21]} 27. Qc4 {[%emt 0:02:44]} g5 {[%emt 0:01:47]} 28. Be3 {[%emt 0:02:39]} a5 {[%emt 0:04:08]} 29. Qxc6 {[%emt 0:04:24]} Rd1+ {[%emt 0:02:29]} 30. Kh2 {[%emt 0:00:27]} Rxc1 {[%emt 0:07:38]} 31. Qxc1 {[%emt 1:30:15]} Qxe5+ {[%emt 1:30:33]} 32. f4 {[%emt 0:00:54]} Qf5 {[%emt 0:03:55]} 33. fxg5 {[%emt 0:07:01]} axb4 {[%emt 0:04:12]} 34. axb4 {[%emt 0:00:37]} Bxb4 {[%emt 0:00:32]} 35. Qc8+ {[%emt 0:02:57]} Bf8 {[%emt 0:00:33]} 1/2-1/2

[Event "GER-chT Youth Countries 2020"]
[Site "Berlin"]
[Date "2020.10.04"]
[Round "7"]
[White "Bakiev, Diyor"]
[Black "Farokhi, Keyvan"]
[Result "1/2-1/2"]
[ECO "B13"]
[WhiteElo "2070"]
[BlackElo "2001"]
[Annotator "ChessBase"]
[PlyCount "68"]
[EventDate "2020.09.30"]
[EventType "team-tourn"]
[EventRounds "7"]
[EventCountry "GER"]
[SourceTitle "playchess.com"]
[Source "ChessBase"]
[SourceQuality "1"]
[TimeControl "30/5400+30:0"]

1. e4 c6 2. d4 d5 3. exd5 cxd5 4. c4 Nf6 5. Nc3 Nc6 6. Bg5 dxc4 7. d5 Ne5 8. Qd4 h6 9. Bf4 Ng6 10. Bxc4 Nxf4 11. Qxf4 g5 12. Qd2 Bg7 13. Nf3 O-O 14. O-O a6 15. a4 Qc7 16. Ba2 Rd8 17. Qe2 Bg4 18. Rfe1 Rd7 19. h3 {[%emt 0:23:01]} Bxf3 {[%emt 0:40:48]} 20. Qxf3 {[%emt 0:00:05]} Qf4 {[%emt 0:07:18]} 21. Qxf4 {[%emt 0:03:12]} gxf4 {[%emt 0:00:03]} 22. a5 {[%emt 0:02:08]} Rc7 {[%emt 0:05:44]} 23. Na4 {[%emt 0:16:13]} Rd8 {[%emt 0:02:57]} 24. Rad1 {[%emt 0:01:10]} Kf8 {[%emt 0:01:13]} 25. Bb3 {[%emt 0:03:47]} Ne8 {[%emt 0:13:40]} 26. Re4 {[%emt 0:22:31]} e5 {[%emt 0:13:56]} 27. dxe6 {[%emt 0:10:40]} Rxd1+ {[%emt 0:00:10]} 28. Bxd1 {[%emt 0:00:04]} Nd6 {[%emt 0:00:51]} 29. e7+ {[%emt 0:06:33]} Rxe7 {[%emt 0:00:17]} 30. Rxe7 {[%emt 0:00:06]} Kxe7 {[%emt 0:00:02]} 31. Bf3 {[%emt 1:30:35]} Kd8 {[%emt 1:38:04]} 32. Bd5 {[%emt 0:03:50]} Bd4 {[%emt 0:00:56]} 33. Kf1 {[%emt 0:01:05]} f6 {[%emt 0:01:00]} 34. Ke2 {[%emt 0:00:41]} Kc7 {[%emt 0:01:19]} 1/2-1/2

[Event "GER-chT Youth Countries 2020"]
[Site "Berlin"]
[Date "2020.10.04"]
[Round "7"]
[White "Muedder, Melanie"]
[Black "Pikalow, Michael"]
[Result "1-0"]
[ECO "B90"]
[WhiteElo "2039"]
[BlackElo "2021"]
[Annotator "ChessBase"]
[PlyCount "49"]
[EventDate "2020.09.30"]
[EventType "team-tourn"]
[EventRounds "7"]
[EventCountry "GER"]
[SourceTitle "playchess.com"]
[Source "ChessBase"]
[SourceQuality "1"]
[TimeControl "30/5400+30:0"]

1. e4 {[%emt 0:00:00]} c5 {[%emt 0:00:00]} 2. Nf3 {[%emt 0:00:00]} d6 3. d4 {[%emt 0:00:00]} cxd4 {[%emt 0:00:00]} 4. Nxd4 {[%emt 0:00:06]} Nf6 {[%emt 0:00:00]} 5. Nc3 {[%emt 0:00:12]} a6 {[%emt 0:00:00]} 6. Qf3 g6 {[%emt 0:06:33]} 7. h3 {[%emt 0:00:49]} Bg7 {[%emt 0:00:58]} 8. Be3 {[%emt 0:03:41]} O-O {[%emt 0:03:03]} 9. g4 {[%emt 0:01:07]} Nc6 10. O-O-O {[%emt 0:01:32]} Bd7 {[%emt 0:08:41]} 11. Qg2 Nxd4 {[%emt 0:19:20]} 12. Bxd4 {[%emt 0:01:59]} Bb5 {[%emt 0:11:23]} 13. f4 Nd7 14. Bxg7 {[%emt 0:18:48]} Kxg7 {[%emt 0:00:40]} 15. Qd2 {[%emt 0:02:40]} Bxf1 {[%emt 0:09:53]} 16. Rhxf1 {[%emt 0:09:42]} Nc5 {[%emt 0:19:02]} 17. h4 {[%emt 0:02:03]} Qd7 {[%emt 0:10:27]} 18. Qd4+ {[%emt 0:02:04]} Kg8 {[%emt 0:01:35]} 19. Qxc5 Rac8 20. Qe3 {[%emt 0:03:12]} Qxg4 {[%emt 0:01:55]} 21. f5 {[%emt 0:05:57]} Rc4 22. h5 {[%emt 0:06:42]} Rfc8 {[%emt 0:02:45]} 23. hxg6 {[%emt 0:01:47]} hxg6 {[%emt 0:00:20]} 24. Rg1 {[%emt 0:02:00]} Qh5 {[%emt 0:00:44]} 25. Rh1 {[%emt 0:01:00]} 1-0

[Event "GER-chT Youth Countries 2020"]
[Site "Berlin"]
[Date "2020.10.04"]
[Round "7"]
[White "Wu, Luka"]
[Black "Musiolik, David"]
[Result "0-1"]
[ECO "C95"]
[WhiteElo "2019"]
[BlackElo "2198"]
[Annotator "ChessBase"]
[PlyCount "162"]
[EventDate "2020.09.30"]
[EventType "team-tourn"]
[EventRounds "7"]
[EventCountry "GER"]
[SourceTitle "playchess.com"]
[Source "ChessBase"]
[SourceQuality "1"]
[TimeControl "30/5400+30:0"]

1. e4 {[%emt 0:05:40]} e5 {[%emt 0:32:30]} 2. Nf3 {[%emt 0:00:30]} Nc6 {[%emt 0:00:30]} 3. Bb5 {[%emt 0:00:30]} a6 {[%emt 0:00:30]} 4. Ba4 {[%emt 0:00:30]} Nf6 {[%emt 0:00:30]} 5. O-O {[%emt 0:00:30]} Be7 {[%emt 0:00:30]} 6. Re1 {[%emt 0:00:30]} b5 {[%emt 0:00:30]} 7. Bb3 {[%emt 0:00:30]} d6 {[%emt 0:00:30]} 8. c3 {[%emt 0:00:30]} O-O {[%emt 0:00:30]} 9. h3 {[%emt 0:00:30]} Nb8 {[%emt 0:00:30]} 10. d4 {[%emt 0:00:30]} Nbd7 {[%emt 0:00:30]} 11. Nbd2 {[%emt 0:00:30]} Bb7 {[%emt 0:00:30]} 12. Bc2 {[%emt 0:00:30]} Re8 {[%emt 0:00:30]} 13. Nf1 {[%emt 0:00:30]} Bf8 {[%emt 0:00:30]} 14. Ng3 {[%emt 0:00:30]} g6 {[%emt 0:00:30]} 15. a4 {[%emt 0:00:30]} c5 {[%emt 0:00:30]} 16. d5 {[%emt 0:00:30]} c4 {[%emt 0:00:30]} 17. Bg5 {[%emt 0:00:30]} Nc5 {[%emt 0:00:30]} 18. Qd2 {[%emt 0:00:30]} Be7 {[%emt 0:00:30]} 19. Ra3 {[%emt 0:00:30]} Nfd7 {[%emt 0:00:30]} 20. Be3 {[%emt 0:00:30]} Qc7 {[%emt 0:00:30]} 21. Rea1 {[%emt 0:00:30]} Nb6 {[%emt 0:00:30]} 22. axb5 {[%emt 0:00:30]} axb5 {[%emt 0:00:30]} 23. Qc1 {[%emt 0:00:30]} Rxa3 {[%emt 0:00:30]} 24. Rxa3 {[%emt 0:00:30]} Ra8 {[%emt 0:00:30]} 25. Qa1 {[%emt 0:00:30]} Rxa3 {[%emt 0:00:30]} 26. Qxa3 {[%emt 0:00:30]} Nbd7 {[%emt 0:00:30]} 27. Nd2 {[%emt 0:00:30]} Bd8 {[%emt 0:00:30]} 28. Ne2 {[%emt 0:00:30]} Qa5 {[%emt 0:00:30]} 29. Qxa5 {[%emt 0:00:30]} Bxa5 {[%emt 0:00:30]} 30. b4 {[%emt 0:00:30]} cxb3 {[%emt 0:00:30]} 31. Nxb3 {[%emt 1:30:30]} Nxb3 {[%emt 1:30:30]} 32. Bxb3 {[%emt 0:00:30]} Nc5 {[%emt 0:00:30]} 33. Bxc5 {[%emt 0:00:30]} dxc5 {[%emt 0:00:30]} 34. g3 {[%emt 0:00:30]} g5 {[%emt 0:00:30]} 35. c4 {[%emt 0:00:30]} Ba6 {[%emt 0:00:30]} 36. f4 {[%emt 0:00:30]} bxc4 {[%emt 0:00:30]} 37. Bc2 {[%emt 0:00:30]} f6 {[%emt 0:00:30]} 38. fxe5 {[%emt 0:00:30]} fxe5 {[%emt 0:00:30]} 39. Kf2 {[%emt 0:00:30]} Kf7 {[%emt 0:00:30]} 40. g4 {[%emt 0:00:30]} Bd2 {[%emt 0:00:30]} 41. Kf3 {[%emt 0:00:30]} Kf6 {[%emt 0:00:30]} 42. Kf2 {[%emt 0:00:30]} Kg6 {[%emt 0:00:30]} 43. Ng3 {[%emt 0:00:30]} Bc3 {[%emt 0:00:30]} 44. Nf5 {[%emt 0:00:30]} Bd4+ {[%emt 0:00:30]} 45. Kf3 {[%emt 0:00:30]} c3 {[%emt 0:00:30]} 46. Ng3 {[%emt 0:00:30]} Kf6 {[%emt 0:00:30]} 47. Nh5+ {[%emt 0:00:30]} Kf7 {[%emt 0:00:30]} 48. Ng3 {[%emt 0:00:30]} Kg6 {[%emt 0:00:30]} 49. Ne2 {[%emt 0:00:30]} Bc4 {[%emt 0:00:30]} 50. Ng3 {[%emt 0:00:30]} Bb5 {[%emt 0:00:30]} 51. Ne2 {[%emt 0:00:30]} h5 {[%emt 0:00:30]} 52. Ng3 {[%emt 0:00:30]} h4 {[%emt 0:00:30]} 53. Ne2 {[%emt 0:00:30]} Kf6 {[%emt 0:00:30]} 54. Nc1 {[%emt 0:00:30]} Bf1 {[%emt 0:00:30]} 55. Bd3 {[%emt 0:00:30]} Bxh3 {[%emt 0:00:30]} 56. Nb3 {[%emt 0:00:30]} c2 {[%emt 0:00:30]} 57. Bxc2 {[%emt 0:00:30]} Bf1 {[%emt 0:00:30]} 58. Nd2 {[%emt 0:00:30]} Bb5 {[%emt 0:00:30]} 59. Bb3 {[%emt 0:00:30]} Bd7 {[%emt 0:00:30]} 60. Bc4 {[%emt 0:00:30]} Ke7 {[%emt 0:00:30]} 61. Be2 {[%emt 1:30:30]} Ba4 {[%emt 1:30:30]} 62. Kg2 {[%emt 0:00:30]} Kd8 {[%emt 0:00:30]} 63. Nf3 {[%emt 0:00:30]} Be3 {[%emt 0:00:30]} 64. Nxe5 {[%emt 0:00:30]} Bc2 {[%emt 0:00:30]} 65. Bf3 {[%emt 0:00:30]} Bf4 {[%emt 0:00:30]} 66. Nc6+ {[%emt 0:00:30]} Kc7 {[%emt 0:00:30]} 67. e5 {[%emt 0:00:30]} Ba4 {[%emt 0:00:30]} 68. d6+ {[%emt 0:00:30]} Kd7 {[%emt 0:00:30]} 69. Nb8+ {[%emt 0:00:30]} Ke6 {[%emt 0:00:30]} 70. Nc6 {[%emt 0:00:30]} Bxc6 {[%emt 0:00:30]} 71. Bxc6 {[%emt 0:00:30]} Bxe5 {[%emt 0:00:30]} 72. d7 {[%emt 0:00:30]} Bc7 {[%emt 0:00:30]} 73. Ba4 {[%emt 0:00:30]} Ke5 {[%emt 0:00:30]} 74. Bb3 {[%emt 0:00:30]} Kd4 {[%emt 0:00:30]} 75. Kf2 {[%emt 0:00:30]} c4 {[%emt 0:00:30]} 76. Ba4 {[%emt 0:00:30]} Kc3 {[%emt 0:00:30]} 77. Bb5 {[%emt 0:00:30]} Kb3 {[%emt 0:00:30]} 78. Ke2 {[%emt 0:00:30]} c3 {[%emt 0:00:30]} 79. Bd3 {[%emt 0:00:30]} Kb2 {[%emt 0:00:30]} 80. Kd1 {[%emt 0:00:30]} h3 {[%emt 0:00:30]} 81. Be4 {[%emt 0:00:30]} h2 {[%emt 0:00:30]} 0-1